bitfinex-derivatives/quotes_SOLF0:USTF0_20241017
["timestamp","ask_amount","ask_price","bid_price","bid_amount"]
[1729169590171,8.1472,152.14,152.11,13.3978]
[1729169590369,100.39346501,152.18,152.11,13.35913693]
[1729169590563,3.2869,152.16,152.13,13.3973]
[1729169590764,4.86,152.17,152.07,2.7456]
[1729169590765,14.97,152.17,152.07,4.1855]
[1729169590968,14.97,152.17,152.12,10.11]
[1729169591271,3.2871,152.15,152.12,13.3975]
[1729169591870,10.11,152.14,152.07,7.46160891]
[1729169592069,3.2876,152.13,152.09,13.3983]
[1729169592269,3.2876,152.13,152.09,10.11]
[1729169592878,3.2876,152.13,152.1,10.11]
[1729169593372,3.2876,152.13,152.1,13.398]
[1729169598563,3.2877,152.12,152.1,3.288]
[1729169599576,3.2874,152.14,152.11,3.2879]
[1729169601573,10.11,152.13,152.11,3.2879]
[1729169601873,3.2874,152.14,152.11,3.2879]
[1729169602069,13.3974,152.14,152.11,3.2879]
[1729169604477,3.2875,152.13,152.11,3.2879]
[1729169608382,10.11,152.14,152.11,3.2879]
[1729169608677,13.3974,152.14,152.11,3.2879]
[1729169612180,3.2875,152.13,152.11,3.2879]
[1729169616390,10.11,152.14,152.11,3.2879]
[1729169616391,3.2873,152.14,152.11,3.2879]
[1729169619690,3.2873,152.14,152.12,3.2876]
[1729169621393,3.2878,152.12,152.09,3.2881]
[1729169621585,10.11,152.11,152.07,6.02170891]
[1729169623390,10.11,152.11,152.1,3.2881]
[1729169625593,10.11,152.11,152.07,6.02170891]
[1729169625795,10.11,152.11,152.09,3.2881]
[1729169627695,10.11,152.11,152.1,3.2881]
[1729169629598,10.11,152.11,152.07,6.02170891]
[1729169629802,10.11,152.11,152.09,3.2882]
[1729169631504,3.2884,152.09,152.07,3.27610891]
[1729169631703,10.11,152.08,152.04,14.97]
[1729169631906,10.11,152.08,152.04,10.11]
[1729169632204,10.11,152.08,152.04,13.46450174]
[1729169632605,10.11,152.08,152.06,3.2888]
[1729169637510,13.3984,152.09,152.07,3.2887]
[1729169637812,10.11,152.09,152.07,3.2887]
[1729169640506,13.3984,152.09,152.07,3.2887]
[1729169640912,3.2882,152.1,152.05,10.11]
[1729169641218,10.11,152.12,152.08,3.2884]
[1729169642005,3.288,152.11,152.07,10.11]
[1729169642214,10.11,152.11,152.06,10.11]
[1729169642914,10.11,152.11,152.06,13.33720924]
[1729169643214,3.2882,152.1,152.07,3.2886]
[1729169643915,3.2882,152.1,152.08,3.2885]
[1729169647420,3.2882,152.1,152.07,3.2886]
[1729169648316,3.2882,152.1,152.08,6.52842699]
[1729169648618,4.86,152.13,152.05,10.11]
[1729169648825,10.11,152.14,152.11,3.2877]
[1729169649121,10.11,152.14,152.11,3.2784114]
[1729169649311,10.11,152.14,152.06,6.2026]
[1729169649312,13.3975,152.13,152.1,3.288]
[1729169649517,13.3975,152.13,152.11,3.24420303]
[1729169650828,13.3975,152.13,152.11,6.53210303]
[1729169653216,6.196,152.15,152.07,1.3734]
[1729169653217,3.2879,152.11,152.07,11.4834]
[1729169653417,3.2879,152.11,152.07,14.81159049]
[1729169654519,3.2879,152.11,152.09,3.2883]
[1729169658037,10.11,152.12,152.07,3.32819049]
[1729169658325,10.11,152.1,152.06,16.3126]
[1729169658720,10.11,152.1,152.06,19.63761052]
[1729169658921,13.3982,152.1,152.08,3.2885]
[1729169659926,1.3761,152.14,152.07,3.2887]
[1729169659927,13.3983,152.09,152.07,3.2887]
[1729169660122,10.11,152.08,152.06,3.32501052]
[1729169660323,10.11,152.08,152.04,10.11]
[1729169660514,10.11,152.08,152.02,1.439]
[1729169660515,13.3986,152.08,152.05,3.289]
[1729169661126,13.3986,152.08,152.06,3.2889]
[1729169661428,3.2886,152.08,152.06,3.2889]
[1729169672228,3.2886,152.08,152.06,13.3989]
[1729169672629,3.2886,152.08,152.06,3.2889]
[1729169674333,3.2886,152.08,152.05,3.2891]
[1729169678340,3.2886,152.08,152.06,3.2889]
[1729169678543,13.3984,152.09,152.06,3.2889]
[1729169679140,13.3984,152.09,152.06,6.64977114]
[1729169686542,13.3984,152.09,152.07,3.2886]
[1729169687343,4.86,152.11,152.09,3.2883]
[1729169687344,10.11,152.1,152.09,3.2883]
[1729169687539,14.97,152.11,152.07,10.11]
[1729169687849,15.23965068,152.18,152.1,10.11]
[1729169688151,71.04,152.19,152.07,4.86]
[1729169688152,4.86,152.19,152.14,10.11]
[1729169688450,8.1463,152.19,152.16,13.3967]
[1729169688638,4.86,152.19,152.16,13.3967]
[1729169689239,14.97,152.19,152.16,3.2867]
[1729169690450,3.2864,152.18,152.16,3.2867]
[1729169692354,3.2864,152.18,152.15,3.2868]
[1729169703060,2.8704,152.25,152.17,10.11]
[1729169703357,10.11,152.23,152.19,10.11]
[1729169703560,3.2857,152.21,152.19,13.396]
[1729169703762,103.79327587,152.24,152.2,10.11]
[1729169704059,10.11,152.25,152.2,10.11]
[1729169704258,10.11,152.25,152.2,13.3958]
[1729169704259,3.2854,152.23,152.2,13.3958]
[1729169704853,3.2855,152.22,152.2,13.3958]
[1729169705268,4.84,152.25,152.22,3.2854]
[1729169705454,3.2849,152.25,152.21,10.11]
[1729169705658,113.88332389,152.27,152.21,10.11]
[1729169705854,113.88332389,152.27,152.23,3.2851]
[1729169706163,3.285,152.25,152.23,3.33630021]
[1729169706356,3.285,152.25,152.21,10.11]
[1729169706556,3.285,152.25,152.22,3.2854]
[1729169706756,3.285,152.25,152.22,3.36061679]
[1729169706952,3.2847,152.26,152.23,10.11]
[1729169707159,98.93332389,152.27,152.23,10.11]
[1729169707662,14.95,152.28,152.23,10.11]
[1729169708163,4.84,152.28,152.23,10.11]
[1729169708368,3.2845,152.27,152.25,3.2848]
[1729169708658,100.30825831,152.32,152.26,10.11]
[1729169708967,115.25825831,152.32,152.26,10.11]
[1729169709164,10.11,152.31,152.26,10.11]
[1729169709351,3.2839,152.3,152.27,3.2843]
[1729169710664,10.11,152.32,152.26,10.11]
[1729169710964,3.2836,152.31,152.28,3.2841]
[1729169711263,3.2836,152.31,152.28,13.3941]
[1729169712165,4.84,152.33,152.28,10.11]
[1729169712363,3.2833,152.32,152.29,13.3938]
[1729169713269,3.2833,152.32,152.3,3.25176688]
[1729169714157,3.2832,152.33,152.3,3.2836]
[1729169715954,3.2832,152.33,152.29,13.3604529]
[1729169715955,3.2834,152.32,152.29,16.6443529]
[1729169716858,3.2832,152.33,152.29,13.3604529]
[1729169717466,3.2832,152.33,152.3,3.2837]
[1729169718360,10.11,152.34,152.3,3.2837]
[1729169718662,3.2836,152.31,152.29,13.3604529]
[1729169718863,10.11,152.34,152.29,13.3604529]
[1729169719369,3.2835,152.32,152.29,16.6442529]
[1729169720060,3.2838,152.3,152.27,3.2843]
[1729169720261,10.11,152.28,152.27,3.3319246]
[1729169720861,13.3942,152.28,152.27,3.3319246]
[1729169721068,10.11,152.28,152.22,3.2854]
[1729169721269,3.2849,152.25,152.22,3.2854]
[1729169721466,10.11,152.24,152.23,3.24028354]
[1729169721769,10.11,152.24,152.18,9.2034]
[1729169721770,3.2853,152.23,152.19,10.11]
[1729169722065,10.11,152.22,152.18,2.9082]
[1729169722368,10.11,152.22,152.17,4.84]
[1729169723465,13.3956,152.22,152.18,3.2863]
[1729169728674,3.2857,152.21,152.18,3.2863]
[1729169729278,3.2862,152.19,152.16,8.1266]
[1729169730374,3.2865,152.18,152.15,3.287]
[1729169730574,10.11,152.16,152.14,3.26678491]
[1729169730768,10.11,152.16,152.1,4.2326]
[1729169730972,13.3972,152.14,152.11,3.2877]
[1729169731966,10.11,152.14,152.12,3.2875]
[1729169733376,13.397,152.16,152.12,3.2875]
[1729169734078,13.397,152.16,152.13,3.2874]
[1729169734277,13.397,152.16,152.14,3.34813826]
[1729169738374,10.11,152.16,152.14,3.34813826]
[1729169738569,13.3966,152.17,152.12,10.11]
[1729169738983,3.2869,152.16,152.13,3.2873]
[1729169739187,3.2869,152.16,152.14,3.21793471]
[1729169740482,3.2866,152.17,152.15,3.287]
[1729169740683,4.84,152.2,152.16,10.11]
[1729169740982,3.2867,152.17,152.14,3.2871]
[1729169741780,3.2867,152.17,152.14,6.56630317]
[1729169741978,10.11,152.17,152.14,3.27920317]
[1729169742288,10.11,152.16,152.14,3.27920317]
[1729169742485,10.11,152.16,152.11,14.95]
[1729169742786,13.3969,152.16,152.13,3.2873]
[1729169743079,13.3969,152.16,152.14,3.32457869]
[1729169744489,3.2869,152.16,152.14,3.2872]
[1729169744682,3.2869,152.16,152.15,3.35647307]
[1729169746382,10.11,152.17,152.15,3.35647307]
[1729169746584,10.11,152.18,152.16,6.55165266]
[1729169746883,10.11,152.18,152.16,3.2867]
[1729169747388,10.11,152.18,152.16,6.63155029]
[1729169747884,10.11,152.18,152.16,3.34485029]
[1729169748084,10.11,152.18,152.13,10.11]
[1729169748682,13.3964,152.18,152.15,3.2869]
[1729169748882,13.3964,152.18,152.16,3.36337804]
[1729169754892,13.3964,152.18,152.16,3.2868]
[1729169755088,13.3964,152.18,152.16,6.58222624]
[1729169757986,3.2864,152.18,152.16,6.58222624]
[1729169758188,3.2858,152.21,152.19,3.2861]
[1729169758397,3.2858,152.21,152.17,10.11]
[1729169759190,3.286,152.2,152.18,3.2862]
[1729169759796,13.396,152.2,152.18,3.2862]
[1729169762405,3.286,152.2,152.18,3.2862]
[1729169764097,8.1256,152.22,152.19,3.286]
[1729169764297,8.1256,152.22,152.19,10.11]
[1729169764499,14.95,152.25,152.2,10.11]
[1729169764801,4.84,152.26,152.22,13.3953]
[1729169764997,4.84,152.26,152.23,3.27659548]
[1729169765504,3.2848,152.25,152.23,3.27659548]
[1729169765899,3.2846,152.26,152.24,3.2851]
[1729169766901,4.84,152.27,152.24,3.285]
[1729169767304,3.2845,152.27,152.24,3.285]
[1729169767604,1.4149,152.29,152.24,10.11]
[1729169767907,3.2838,152.3,152.27,3.2842]
[1729169768197,3.2838,152.3,152.27,13.3942]
[1729169768599,3.2838,152.3,152.27,16.63029578]
[1729169769308,3.2838,152.3,152.27,6.52029578]
[1729169769700,4.84,152.31,152.29,3.2839]
[1729169770005,4.84,152.31,152.29,13.3939]
[1729169771809,8.1236,152.31,152.28,10.11]
[1729169771999,18.2336,152.31,152.28,3.2841]
[1729169772599,18.2336,152.31,152.29,3.31922206]
[1729169773308,3.2842,152.29,152.26,3.2845]
[1729169773700,10.11,152.29,152.26,3.33367632]
[1729169773907,10.11,152.29,152.25,3.2847]
[1729169773908,3.2843,152.28,152.25,3.2847]
[1729169774104,3.2843,152.28,152.26,3.30016873]
[1729169774404,3.2846,152.26,152.24,13.3949]
[1729169774597,10.11,152.29,152.24,3.2849]
[1729169775002,10.11,152.29,152.25,3.25383356]
[1729169775497,3.2845,152.27,152.25,3.25383356]
[1729169777115,3.2842,152.28,152.25,3.2847]
[1729169777417,3.2842,152.28,152.26,3.31954766]
[1729169780410,3.2842,152.28,152.26,6.60414766]
[1729169780607,3.2842,152.28,152.26,3.2846]
[1729169780808,3.2842,152.28,152.26,6.52069578]
[1729169782113,3.2847,152.26,152.23,3.2851]
[1729169782313,3.2847,152.26,152.24,3.23597983]
[1729169782810,3.2847,152.26,152.24,6.52087983]
[1729169786011,3.2847,152.26,152.24,16.63087983]
[1729169786212,3.2845,152.27,152.25,3.2848]
[1729169786716,3.2843,152.28,152.25,3.2848]
[1729169787314,3.2844,152.27,152.25,3.2848]
[1729169796616,3.2844,152.27,152.24,13.34597983]
[1729169796617,10.11,152.27,152.24,3.23597983]
[1729169796820,10.11,152.26,152.19,10.11]
[1729169797421,10.11,152.26,152.2,10.11]
[1729169798009,3.2852,152.24,152.21,3.2856]
[1729169798414,3.2852,152.24,152.2,10.11]
[1729169798620,3.2852,152.24,152.18,2.7217]
[1729169798621,13.3952,152.24,152.19,10.11]
[1729169799421,13.3952,152.24,152.2,3.2858]
[1729169800426,13.3952,152.24,152.19,10.11]
[1729169800625,13.3952,152.24,152.2,3.2858]
[1729169801024,3.2853,152.23,152.2,3.2858]
[1729169802123,10.11,152.23,152.18,2.7217]
[1729169802425,10.11,152.2,152.15,18.22035059]
[1729169802825,3.2863,152.19,152.16,3.2868]
[1729169803023,10.11,152.18,152.15,3.27035059]
[1729169803327,10.11,152.18,152.13,10.11]
[1729169803731,13.3965,152.18,152.15,3.287]
[1729169803923,13.3965,152.18,152.15,6.59360386]
[1729169804128,10.11,152.18,152.13,10.11]
[1729169805432,3.2867,152.17,152.14,3.2871]
[1729169805631,3.2867,152.17,152.14,6.49244775]
[1729169808731,13.3964,152.18,152.15,3.2868]
[1729169809033,3.2864,152.18,152.15,13.3968]
[1729169809931,3.2866,152.17,152.15,13.3968]
[1729169810332,10.11,152.2,152.15,10.11]
[1729169810638,3.2863,152.19,152.16,3.2868]
[1729169811437,3.2863,152.19,152.16,13.3968]
[1729169813938,3.286,152.2,152.18,3.2863]
[1729169814142,98.96524118,152.23,152.18,10.11]
[1729169814349,98.96524118,152.23,152.14,3.20534775]
[1729169814350,98.96524118,152.23,152.2,10.11]
[1729169814747,98.96524118,152.23,152.21,3.2857]
[1729169814748,102.25064118,152.23,152.21,3.2857]
[1729169814940,102.25064118,152.23,152.22,3.24972561]
[1729169816549,98.96524118,152.23,152.22,3.24972561]
[1729169817844,102.25054118,152.23,152.22,3.24972561]
[1729169818444,3.2853,152.23,152.22,3.24972561]
[1729169821553,71.0,152.36,152.21,10.11]
[1729169821745,2.675,152.35,152.27,10.11]
[1729169821941,2.675,152.35,152.29,10.11]
[1729169821942,6.86407116,152.34,152.29,10.11]
[1729169822144,15.95206828,152.34,152.29,10.11]
[1729169822543,10.11,152.33,152.29,10.11]
[1729169822748,3.2838,152.31,152.28,3.2841]
[1729169822953,10.11,152.31,152.25,2.7131]
[1729169823144,10.11,152.31,152.26,10.11]
[1729169823348,3.2838,152.3,152.27,3.2843]
[1729169823549,3.2838,152.3,152.27,6.5854527]
[1729169828259,3.2838,152.3,152.27,16.6954527]
[1729169829356,3.2842,152.28,152.27,3.3011527]
[1729169829657,10.11,152.28,152.2,16.2672]
[1729169829856,10.11,152.26,152.2,16.2672]
[1729169830562,10.11,152.24,152.15,1.383]
[1729169830858,10.11,152.23,152.18,10.11]
[1729169831056,13.3954,152.23,152.19,3.286]
[1729169831460,10.11,152.23,152.18,10.11]
[1729169831661,13.3958,152.21,152.18,3.2863]
[1729169832163,3.2859,152.2,152.17,13.3964]
[1729169832363,3.2859,152.2,152.17,3.2864]
[1729169832568,13.3959,152.2,152.17,3.2864]
[1729169833356,13.3963,152.19,152.16,4.82]
[1729169833555,13.3963,152.19,152.15,4.6699]
[1729169833556,10.11,152.19,152.15,4.6699]
[1729169833861,10.11,152.19,152.13,4.82]
[1729169833862,10.11,152.18,152.13,4.82]
[1729169834059,3.2867,152.17,152.13,8.1073]
[1729169834458,3.2867,152.17,152.13,3.2873]
[1729169834662,10.11,152.18,152.13,3.2873]
[1729169835265,10.11,152.16,152.14,3.33158961]
[1729169835462,10.11,152.16,152.12,8.1076]
[1729169835966,4.82,152.2,152.12,8.1076]
[1729169835967,15.79,152.18,152.12,8.1076]
[1729169836461,3.287,152.16,152.12,8.1076]
[1729169836864,3.287,152.16,152.12,3.2876]
[1729169840168,15.79,152.18,152.11,2.854]
[1729169840466,20.61,152.2,152.14,3.2871]
[1729169840667,15.79,152.2,152.14,3.20851745]
[1729169840860,67.61840877,152.41,152.18,3.2864]
[1729169840861,8.1059,152.21,152.18,3.2864]
[1729169841168,3.2859,152.21,152.18,3.2864]
[1729169841570,3.2859,152.21,152.15,15.79]
[1729169841867,4.82,152.23,152.17,3.2865]
[1729169842066,3.286,152.2,152.17,3.2865]
[1729169845363,4.82,152.23,152.15,15.79]
[1729169846064,15.79,152.24,152.15,15.79]
[1729169846271,3.2853,152.23,152.2,3.2858]
[1729169848771,3.2855,152.22,152.2,3.2858]
[1729169850073,3.2853,152.23,152.17,3.2864]
[1729169850271,3.2853,152.23,152.15,17.2196]
[1729169850475,3.2853,152.23,152.17,15.79]
[1729169850774,3.2853,152.23,152.2,3.2857]
[1729169850970,3.2851,152.24,152.19,15.79]
[1729169851271,2.7364,152.28,152.19,15.79]
[1729169851478,7.5564,152.28,152.19,15.79]
[1729169851671,21.9975,152.29,152.19,15.79]
[1729169851867,21.9975,152.29,152.19,17.1146]
[1729169852171,3.2847,152.26,152.23,3.2851]
[1729169852477,3.2847,152.26,152.23,6.64166996]
[1729169852677,3.2844,152.28,152.23,3.35656996]
[1729169852967,21.9975,152.29,152.22,3.2855]
[1729169853367,3.285,152.25,152.22,6.57590827]
[1729169853567,21.9975,152.29,152.22,3.2855]
[1729169854072,21.9975,152.29,152.23,3.36335321]
[1729169854378,3.2851,152.24,152.23,3.36335321]
[1729169858875,10.09,152.26,152.23,3.36335321]
[1729169859078,3.2846,152.27,152.24,3.285]
[1729169860171,6.2075,152.29,152.24,10.09]
[1729169860373,3.2843,152.28,152.25,3.2847]
[1729169860579,3.2843,152.28,152.24,10.09]
[1729169861171,3.2843,152.28,152.25,3.2848]
[1729169861375,10.09,152.3,152.24,10.09]
[1729169861577,3.2842,152.29,152.25,10.09]
[1729169861774,10.09,152.3,152.26,3.2845]
[1729169863368,3.284,152.29,152.26,3.2845]
[1729169863570,10.09,152.31,152.27,10.09]
[1729169863773,10.09,152.32,152.27,10.09]
[1729169863972,3.2835,152.32,152.29,10.09]
[1729169864780,3.2833,152.33,152.3,13.3736]
[1729169865172,10.09,152.34,152.3,13.3736]
[1729169865482,10.09,152.34,152.31,3.26184782]
[1729169866074,3.2833,152.32,152.31,3.26184782]
[1729169867875,3.2832,152.33,152.31,3.2835]
[1729169868083,3.2832,152.33,152.31,6.53450784]
[1729169868380,10.09,152.36,152.31,13.34100784]
[1729169869778,3.2832,152.33,152.31,13.34100784]
[1729169871771,3.2832,152.33,152.31,16.62450784]
[1729169872880,3.2832,152.33,152.31,13.34100784]
[1729169873275,10.09,152.36,152.31,13.34100784]
[1729169873477,10.09,152.36,152.31,16.62450784]
[1729169873676,10.09,152.36,152.31,13.34100784]
[1729169874076,3.2833,152.33,152.31,13.34100784]
[1729169874379,10.09,152.36,152.31,13.34100784]
[1729169875379,3.2833,152.33,152.31,16.62440784]
[1729169876277,3.2833,152.33,152.31,6.53440784]
[1729169877176,3.2833,152.33,152.31,16.62440784]
[1729169877479,3.2833,152.33,152.32,10.09]
[1729169877990,6.1774,152.38,152.32,10.09]
[1729169878192,11.11160311,152.37,152.32,10.09]
[1729169878480,3.2829,152.35,152.32,13.3732]
[1729169880376,3.2828,152.35,152.32,13.3732]
[1729169881482,16.2674,152.38,152.32,10.09]
[1729169881674,16.2674,152.38,152.31,3.25100784]
[1729169881675,3.2827,152.36,152.33,13.373]
[1729169882377,3.2827,152.36,152.33,16.61461565]
[1729169882886,3.2822,152.38,152.35,13.3725]
[1729169883082,3.2822,152.38,152.36,10.09]
[1729169883883,3.2822,152.38,152.37,3.25770715]
[1729169886278,3.2817,152.4,152.37,10.09]
[1729169886587,3.2817,152.4,152.37,13.38219723]
[1729169887484,4.82,152.42,152.39,10.09]
[1729169887485,3.2812,152.42,152.39,10.09]
[1729169888280,3.2812,152.42,152.4,3.2816]
[1729169889785,3.2814,152.42,152.39,6.52640658]
[1729169889985,3.2814,152.42,152.39,16.61640658]
[1729169890187,10.09,152.44,152.39,16.61640658]
[1729169890488,3.2813,152.42,152.39,16.61640658]
[1729169891989,3.2814,152.41,152.39,16.61640658]
[1729169892588,3.2816,152.4,152.39,3.24460658]
[1729169892790,3.2816,152.4,152.38,13.3719]
[1729169892990,10.09,152.42,152.38,13.3719]
[1729169893490,10.09,152.42,152.38,16.61432416]
[1729169893491,3.2815,152.41,152.38,16.61432416]
[1729169901998,3.2815,152.41,152.39,10.09]
[1729169902385,3.2815,152.41,152.39,13.3717]
[1729169904993,3.2813,152.42,152.39,13.3717]
[1729169905196,3.2813,152.42,152.4,10.09]
[1729169906201,14.91,152.45,152.4,10.09]
[1729169906501,3.2814,152.41,152.39,13.3717]
[1729169910402,3.2814,152.41,152.39,3.2817]
[1729169911502,3.2814,152.41,152.39,13.3717]
[1729169911702,2.7518,152.49,152.4,10.09]
[1729169911910,10.09,152.47,152.43,10.09]
[1729169912098,10.09,152.47,152.42,10.09]
[1729169912401,10.09,152.47,152.39,2.8062]
[1729169912402,2.7518,152.49,152.43,10.09]
[1729169912603,11.11081118,152.48,152.43,10.09]
[1729169912809,10.09,152.48,152.43,10.09]
[1729169913001,3.2806,152.45,152.43,13.3709]
[1729169914106,3.2806,152.45,152.43,10.09]
[1729169915112,3.2806,152.45,152.43,13.3709]
[1729169915315,3.2807,152.44,152.43,10.09]
[1729169921114,2.7518,152.49,152.43,10.09]
[1729169921115,3.2805,152.46,152.43,10.09]
[1729169921310,3.2805,152.46,152.45,10.09]
[1729169922809,11.4482,152.49,152.45,10.09]
[1729169923018,3.2803,152.46,152.45,10.09]
[1729169930124,1.3582,152.49,152.45,10.09]
[1729169930424,3.2802,152.47,152.46,3.27197867]
[1729169930618,3.2802,152.47,152.46,10.09]
[1729169930822,3.2802,152.47,152.46,13.29732673]
[1729169936425,3.2801,152.47,152.46,3.20732673]
[1729169936622,3.2801,152.47,152.46,10.09]
[1729169936822,3.2801,152.47,152.46,13.38189397]
[1729169937527,10.09,152.5,152.46,13.38189397]
[1729169937729,4.8,152.51,152.47,10.09]
[1729169938129,3.2799,152.48,152.47,10.09]
[1729169938540,4.8,152.51,152.47,10.09]
[1729169938832,3.2798,152.49,152.47,10.09]
[1729169939340,3.2799,152.48,152.47,10.09]
[1729169939536,10.09,152.52,152.47,13.3701]
[1729169940132,3.2798,152.49,152.47,13.3701]
[1729169940932,3.2798,152.49,152.47,10.09]
[1729169941828,4.8,152.65,152.48,10.09]
[1729169942027,10.09,152.57,152.52,10.09]
[1729169942229,3.2794,152.51,152.5,4.8]
[1729169942434,10.09,152.54,152.49,10.09]
[1729169943026,10.09,152.54,152.49,13.3697]
[1729169943428,10.09,152.54,152.49,10.09]
[1729169943429,3.2789,152.53,152.49,10.09]
[1729169944733,3.2789,152.53,152.49,13.3696]
[1729169945039,1.3497,152.55,152.48,3.30808128]
[1729169945040,4.6282,152.55,152.52,10.09]
[1729169945336,3.2785,152.55,152.52,10.09]
[1729169945539,3.2785,152.55,152.52,13.44150032]
[1729169947944,13.3685,152.55,152.52,3.35150032]
[1729169950541,3.2785,152.55,152.52,3.35150032]
[1729169950947,3.2785,152.55,152.52,6.63050032]
[1729169952146,3.2785,152.55,152.52,16.72050032]
[1729169953050,13.3683,152.56,152.53,3.2788]
[1729169956456,3.2783,152.56,152.53,13.3688]
[1729169956856,3.2783,152.56,152.53,3.2788]
[1729169957161,10.09,152.54,152.52,3.35150032]
[1729169957549,10.09,152.54,152.52,3.279]
[1729169957855,10.09,152.54,152.52,6.59879154]
[1729169958354,13.3685,152.55,152.52,6.59879154]
[1729169960159,3.2785,152.55,152.52,6.59879154]
[1729169960655,3.2785,152.55,152.53,3.2788]
[1729169960956,3.2785,152.55,152.5,14.89]
[1729169961157,3.2785,152.55,152.5,18.19273501]
[1729169961459,3.2785,152.55,152.51,3.2791]
[1729169961958,3.2785,152.55,152.52,3.279]
[1729169962160,1.4623,152.57,152.52,3.279]
[1729169962161,1.4623,152.57,152.52,10.09]
[1729169962355,3.2782,152.56,152.52,10.09]
[1729169962850,3.2782,152.56,152.53,3.2787]
[1729169963955,3.2782,152.56,152.54,10.09]
[1729169964157,3.278,152.57,152.54,13.3686]
[1729169964756,8.0779,152.58,152.55,13.3683]
[1729169964952,3.2779,152.58,152.55,13.3683]
[1729169965359,3.2778,152.58,152.54,3.2784]
[1729169965547,3.2778,152.58,152.54,10.09]
[1729169966361,3.2778,152.58,152.55,3.2783]
[1729169968260,3.2777,152.59,152.55,3.2783]
[1729169969959,3.2777,152.58,152.55,3.2783]
[1729169970561,10.09,152.6,152.51,2.842]
[1729169970761,3.278,152.57,152.54,13.3685]
[1729169971160,10.09,152.6,152.54,10.09]
[1729169971361,3.2779,152.58,152.55,3.2784]
[1729169974666,3.2779,152.58,152.55,13.3684]
[1729169976567,10.09,152.6,152.53,4.8]
[1729169976764,3.2781,152.57,152.55,10.09]
[1729169977070,10.09,152.6,152.55,10.09]
[1729169977763,3.2776,152.59,152.56,3.2782]
[1729169978267,3.2776,152.59,152.56,10.09]
[1729169978462,3.2776,152.59,152.56,13.3681]
[1729169979363,11.4776,152.61,152.57,13.3678]
[1729169979364,3.2774,152.6,152.57,13.3678]
[1729169979769,1.3876,152.61,152.57,10.09]
[1729169979969,3.2776,152.59,152.56,13.368]
[1729169982571,10.09,152.6,152.55,13.3683]
[1729169983068,10.09,152.6,152.55,10.09]
[1729169983665,1.3876,152.61,152.55,13.3682]
[1729169983871,10.09,152.6,152.55,13.3682]
[1729169984172,3.2778,152.58,152.55,13.3682]
[1729169984772,3.2778,152.58,152.56,10.09]
[1729169985466,3.2778,152.58,152.55,3.2782]
[1729169985673,3.2778,152.58,152.56,10.09]
[1729169988465,3.2778,152.58,152.56,13.3682]
[1729169992576,3.2778,152.58,152.57,10.09]
[1729169993568,3.2776,152.59,152.57,13.368]
[1729169993878,14.89,152.62,152.57,10.09]
[1729169994069,3.2777,152.59,152.57,10.09]
[1729169994470,14.89,152.62,152.57,10.09]
[1729169995077,3.2776,152.59,152.57,13.3679]
[1729169996770,14.89,152.62,152.57,10.09]
[1729169996972,3.2779,152.58,152.56,10.09]
[1729169998476,3.2779,152.58,152.56,13.3681]